[Event "Open Nuevo Centro. Jornada 1"]
[Site "Chess.com"]
[Date "2020.06.19"]
[Round "2"]
[White "Rabbani Perez, Oumaima "]
[Black "M�ndez Gim�nez , N�stor Emmanuel"]
[Result "0-1"]
[WhiteElo "721"]
[BlackElo "1146"]
[TimeControl "180+2"]
[EndTime "10:45:13 PDT"]
[Termination "Victoria de NestorMendez8 por jaque mate"]

1. e3 {[%clk 0:02:49.3]} 1... e6 {[%clk 0:02:56.6]} 2. Bd3 {[%clk 0:02:46.8]}
2... Nf6 {[%clk 0:02:57.2]} 3. Nf3 {[%clk 0:02:46.6]} 3... Bd6 {[%clk
0:02:57.8]} 4. O-O {[%clk 0:02:42]} 4... b6 {[%clk 0:02:58.5]} 5. b3 {[%clk
0:02:41.1]} 5... Bb7 {[%clk 0:02:55.7]} 6. Bb2 {[%clk 0:02:37.1]} 6... O-O
{[%clk 0:02:55.9]} 7. Bxf6 {[%clk 0:02:35.2]} 7... Qxf6 {[%clk 0:02:56]} 8. Ne5
{[%clk 0:02:26.3]} 8... Bxe5 {[%clk 0:02:52.6]} 9. Qg4 {[%clk 0:02:21.8]} 9...
Bxa1 {[%clk 0:02:48.9]} 10. Qh4 {[%clk 0:02:21.8]} 10... Qxh4 {[%clk 0:02:47.3]}
11. g3 {[%clk 0:02:18.4]} 11... Qh3 {[%clk 0:02:47.6]} 12. Nc3 {[%clk
0:02:08.4]} 12... Qg2# {[%clk 0:02:47.5]} 0

[Event "Open Nuevo Centro. Jornada 1"]
[Site "Chess.com"]
[Date "2020.06.19"]
[Round "2"]
[White "Crevillen Abad, Clemente"]
[Black "Perrot, Fabien "]
[Result "1-0"]
[WhiteElo "1783"]
[BlackElo "975"]
[TimeControl "180+2"]
[EndTime "10:45:54 PDT"]
[Termination "Victoria de Clementovich por jaque mate"]

1. e4 {[%clk 0:03:01.9]} 1... e5 {[%clk 0:02:58]} 2. Nf3 {[%clk 0:03:02]} 2...
Nc6 {[%clk 0:02:57.5]} 3. Bb5 {[%clk 0:03:01.9]} 3... Be7 {[%clk 0:02:55.5]} 4.
d4 {[%clk 0:02:59.7]} 4... Nxd4 {[%clk 0:02:44.5]} 5. Nxd4 {[%clk 0:03:00.2]}
5... exd4 {[%clk 0:02:46]} 6. Qxd4 {[%clk 0:03:00.9]} 6... c6 {[%clk 0:02:45.1]}
7. Bc4 {[%clk 0:03:00.1]} 7... Qb6 {[%clk 0:02:31.7]} 8. Qxg7 {[%clk 0:02:48.8]}
8... Bf6 {[%clk 0:01:51.1]} 9. Qxf7+ {[%clk 0:02:48.1]} 9... Kd8 {[%clk
0:01:42.5]} 10. Qf8+ {[%clk 0:02:42.5]} 10... Kc7 {[%clk 0:01:35.4]} 11. Bf4+
{[%clk 0:02:42.6]} 11... d6 {[%clk 0:01:28.6]} 12. Qxd6# {[%clk 0:02:42]} 1

[Event "Open Nuevo Centro. Jornada 1"]
[Site "Chess.com"]
[Date "2020.06.19"]
[Round "2"]
[White "Aymerich Rosell, Pablo"]
[Black "Donate Peris, Jose Manuel"]
[Result "1-0"]
[WhiteElo "2036"]
[BlackElo "1591"]
[TimeControl "180+2"]
[EndTime "10:46:02 PDT"]
[Termination "Victoria de jasikevic por jaque mate"]

1. e4 {[%clk 0:03:01.9]} 1... e5 {[%clk 0:03:00.8]} 2. Nf3 {[%clk 0:03:02.2]}
2... Nc6 {[%clk 0:03:01.7]} 3. Bb5 {[%clk 0:03:02.9]} 3... a6 {[%clk 0:03:01.7]}
4. Ba4 {[%clk 0:03:03.8]} 4... Bc5 {[%clk 0:03:00.2]} 5. c3 {[%clk 0:02:59.6]}
5... d6 {[%clk 0:02:57.8]} 6. d4 {[%clk 0:02:56.5]} 6... exd4 {[%clk 0:02:58.1]}
7. cxd4 {[%clk 0:02:57.3]} 7... Bb4+ {[%clk 0:02:58]} 8. Nc3 {[%clk 0:02:55.2]}
8... b5 {[%clk 0:02:58.2]} 9. Bb3 {[%clk 0:02:53.4]} 9... Nge7 {[%clk
0:02:53.7]} 10. Ng5 {[%clk 0:02:38.1]} 10... O-O {[%clk 0:02:49.3]} 11. Qh5
{[%clk 0:02:15.7]} 11... h6 {[%clk 0:02:42.8]} 12. Nxf7 {[%clk 0:02:12.5]} 12...
Rxf7 {[%clk 0:02:35.4]} 13. Bxf7+ {[%clk 0:02:07.2]} 13... Kh8 {[%clk
0:02:35.8]} 14. Bxh6 {[%clk 0:02:00.1]} 14... Nxd4 {[%clk 0:02:23.1]} 15. Be3#
{[%clk 0:01:52.7]} 1

[Event "Open Nuevo Centro. Jornada 1"]
[Site "Chess.com"]
[Date "2020.06.19"]
[Round "2"]
[White "G�mez Alonso, �scar"]
[Black "Rabbani Perez, Ayoub "]
[Result "1-0"]
[WhiteElo "1764"]
[BlackElo "241"]
[TimeControl "180+2"]
[EndTime "10:46:17 PDT"]
[Termination "Victoria de osgo78 por jaque mate"]

1. d4 {[%clk 0:03:01.9]} 1... c5 {[%clk 0:02:56.1]} 2. d5 {[%clk 0:03:00.5]}
2... Nc6 {[%clk 0:02:53.5]} 3. dxc6 {[%clk 0:03:00.6]} 3... Rb8 {[%clk
0:02:51.5]} 4. cxd7+ {[%clk 0:02:48.1]} 4... Qxd7 {[%clk 0:02:51]} 5. Qxd7+
{[%clk 0:02:47.1]} 5... Bxd7 {[%clk 0:02:50.5]} 6. Nc3 {[%clk 0:02:47.7]} 6...
Rc8 {[%clk 0:02:49.2]} 7. e3 {[%clk 0:02:48]} 7... Bf5 {[%clk 0:02:46.3]} 8. Nf3
{[%clk 0:02:44.5]} 8... Bxc2 {[%clk 0:02:45.5]} 9. Bb5+ {[%clk 0:02:43.9]} 9...
Rc6 {[%clk 0:02:32]} 10. Bxc6+ {[%clk 0:02:44]} 10... bxc6 {[%clk 0:02:31.7]}
11. O-O {[%clk 0:02:44.7]} 11... Bg6 {[%clk 0:02:30.3]} 12. b3 {[%clk
0:02:42.9]} 12... Bf5 {[%clk 0:02:28.9]} 13. Bb2 {[%clk 0:02:42.9]} 13... Bc8
{[%clk 0:02:28.7]} 14. Na4 {[%clk 0:02:43]} 14... a5 {[%clk 0:02:28]} 15. Nxc5
{[%clk 0:02:43.8]} 15... a4 {[%clk 0:02:23.8]} 16. Rfd1 {[%clk 0:02:42.8]} 16...
axb3 {[%clk 0:02:23.8]} 17. axb3 {[%clk 0:02:44.7]} 17... e5 {[%clk 0:02:20.1]}
18. Ra8 {[%clk 0:02:45]} 18... Ke7 {[%clk 0:02:19]} 19. Rxc8 {[%clk 0:02:41.8]}
19... e4 {[%clk 0:02:15.8]} 20. Ng5 {[%clk 0:02:28.9]} 20... f6 {[%clk
0:02:01.8]} 21. Rd7# {[%clk 0:02:28.6]} 1

[Event "Open Nuevo Centro. Jornada 1"]
[Site "Chess.com"]
[Date "2020.06.19"]
[Round "2"]
[White "Fern�ndez Martin, Carlos"]
[Black "Garrido Barona, An�bal"]
[Result "1-0"]
[WhiteElo "1257"]
[BlackElo "730"]
[TimeControl "180+2"]
[EndTime "10:47:03 PDT"]
[Termination "Victoria de Pistachomortal por jaque mate"]

1. e4 {[%clk 0:03:01.9]} 1... e5 {[%clk 0:02:58.8]} 2. Nf3 {[%clk 0:03:02.2]}
2... Nc6 {[%clk 0:02:53.7]} 3. d4 {[%clk 0:03:01.6]} 3... d5 {[%clk 0:02:46.9]}
4. exd5 {[%clk 0:03:01.3]} 4... Nce7 {[%clk 0:02:30.9]} 5. dxe5 {[%clk
0:02:56.2]} 5... Nxd5 {[%clk 0:02:27]} 6. Bc4 {[%clk 0:02:55.9]} 6... c6 {[%clk
0:02:11.4]} 7. O-O {[%clk 0:02:53.5]} 7... f6 {[%clk 0:01:51]} 8. Re1 {[%clk
0:02:47.8]} 8... Bb4 {[%clk 0:01:45.1]} 9. c3 {[%clk 0:02:47.1]} 9... Bc5 {[%clk
0:01:18.8]} 10. exf6+ {[%clk 0:02:47]} 10... Nde7 {[%clk 0:01:01.4]} 11. fxg7
{[%clk 0:02:30.1]} 11... Nf6 {[%clk 0:00:41.7]} 12. gxh8=Q+ {[%clk 0:02:29.5]}
12... Ng8 {[%clk 0:00:40.1]} 13. Qxg8# {[%clk 0:02:28.2]} 1

[Event "Open Nuevo Centro. Jornada 1"]
[Site "Chess.com"]
[Date "2020.06.19"]
[Round "2"]
[White "Maestre Soler, Sergio"]
[Black "Saiz Sapena, Veronica"]
[Result "0-1"]
[WhiteElo "936"]
[BlackElo "1592"]
[TimeControl "180+2"]
[EndTime "10:47:10 PDT"]
[Termination "Victoria de Titina1 por jaque mate"]

1. e4 {[%clk 0:03:01.8]} 1... c6 {[%clk 0:03:00]} 2. Bc4 {[%clk 0:03:02]} 2...
d5 {[%clk 0:03:00.8]} 3. exd5 {[%clk 0:03:02.6]} 3... cxd5 {[%clk 0:03:01.4]} 4.
Bb3 {[%clk 0:03:02.9]} 4... Nc6 {[%clk 0:03:01.8]} 5. Nc3 {[%clk 0:03:03.9]}
5... Nf6 {[%clk 0:03:02.3]} 6. Nf3 {[%clk 0:03:03.6]} 6... e6 {[%clk 0:03:02.7]}
7. h3 {[%clk 0:03:03.8]} 7... Bb4 {[%clk 0:03:02.3]} 8. d3 {[%clk 0:03:04.6]}
8... d4 {[%clk 0:02:55.6]} 9. Ne5 {[%clk 0:02:57.3]} 9... Nxe5 {[%clk
0:02:51.7]} 10. Qe2 {[%clk 0:02:53.1]} 10... Nc6 {[%clk 0:02:47.4]} 11. Ba4
{[%clk 0:02:55]} 11... dxc3 {[%clk 0:02:45.9]} 12. bxc3 {[%clk 0:02:54.8]} 12...
Bxc3+ {[%clk 0:02:45.9]} 13. Bd2 {[%clk 0:02:47.9]} 13... Bxa1 {[%clk
0:02:46.3]} 14. Bb3 {[%clk 0:02:45.1]} 14... O-O {[%clk 0:02:45]} 15. Qf1 {[%clk
0:02:44.8]} 15... Nd4 {[%clk 0:02:41]} 16. Kd1 {[%clk 0:02:38.8]} 16... Nxb3
{[%clk 0:02:40.2]} 17. cxb3 {[%clk 0:02:39.2]} 17... Qc7 {[%clk 0:02:37.7]} 18.
Bg5 {[%clk 0:02:38.5]} 18... Bd7 {[%clk 0:02:36.9]} 19. Bxf6 {[%clk 0:02:38.4]}
19... Bxf6 {[%clk 0:02:35.6]} 20. Qe2 {[%clk 0:02:36.1]} 20... Rac8 {[%clk
0:02:35.1]} 21. Kd2 {[%clk 0:02:34.5]} 21... Qc2+ {[%clk 0:02:34.8]} 22. Ke3
{[%clk 0:02:33.9]} 22... Bg5+ {[%clk 0:02:31.4]} 23. Kf3 {[%clk 0:02:33.4]}
23... Bc6+ {[%clk 0:02:29.1]} 24. Kg3 {[%clk 0:02:31.7]} 24... Qxe2 {[%clk
0:02:29.3]} 25. Rh2 {[%clk 0:02:31.2]} 25... Qe5+ {[%clk 0:02:26.9]} 26. Kg4
{[%clk 0:02:31]} 26... h6 {[%clk 0:02:26]} 27. Rh1 {[%clk 0:02:28.8]} 27... f5+
{[%clk 0:02:26.2]} 28. Kh5 {[%clk 0:02:29.2]} 28... Qf6 {[%clk 0:02:25.5]} 29.
Re1 {[%clk 0:02:28]} 29... Qg6+ {[%clk 0:02:25]} 30. Kxg6 {[%clk 0:02:25]} 30...
Rf6+ {[%clk 0:02:25.3]} 31. Kh5 {[%clk 0:02:25.3]} 31... Bxg2 {[%clk 0:02:24.9]}
32. Rg1 {[%clk 0:02:19.2]} 32... Bxh3 {[%clk 0:02:24.8]} 33. Rh1 {[%clk
0:02:18.2]} 33... Bg4# {[%clk 0:02:24.6]} 0

[Event "Open Nuevo Centro. Jornada 1"]
[Site "Chess.com"]
[Date "2020.06.19"]
[Round "2"]
[White "Martinez Villena, David"]
[Black "Chernikov, Vladimir"]
[Result "1-0"]
[WhiteElo "1683"]
[BlackElo "2244"]
[TimeControl "180+2"]
[EndTime "10:48:01 PDT"]
[Termination "Victoria de DavidMVAlaquas por abandono"]

1. e4 {[%clk 0:03:01.9]} 1... c5 {[%clk 0:02:59.7]} 2. c3 {[%clk 0:02:58.3]}
2... Nf6 {[%clk 0:02:59.8]} 3. e5 {[%clk 0:02:58.8]} 3... Nd5 {[%clk 0:03:00.3]}
4. d4 {[%clk 0:02:59.2]} 4... cxd4 {[%clk 0:03:00.4]} 5. cxd4 {[%clk 0:03:00.2]}
5... Nc6 {[%clk 0:03:01.4]} 6. Nf3 {[%clk 0:03:01.2]} 6... d6 {[%clk 0:03:02.2]}
7. Bc4 {[%clk 0:02:58]} 7... dxe5 {[%clk 0:02:59.1]} 8. dxe5 {[%clk 0:02:55]}
8... Ndb4 {[%clk 0:02:52.4]} 9. Qb3 {[%clk 0:02:22.9]} 9... e6 {[%clk
0:02:44.7]} 10. O-O {[%clk 0:02:18.9]} 10... Na5 {[%clk 0:02:38]} 11. Bb5+
{[%clk 0:02:17.1]} 11... Bd7 {[%clk 0:02:36]} 12. Bxd7+ {[%clk 0:02:17.5]} 12...
Qxd7 {[%clk 0:02:37.5]} 13. Qd1 {[%clk 0:00:50.8]} 13... Qxd1 {[%clk 0:02:33.1]}
14. Rxd1 {[%clk 0:00:49.2]} 14... Nc2 {[%clk 0:02:35]} 15. Nc3 {[%clk
0:00:49.1]} 15... Nxa1 {[%clk 0:02:31.5]} 16. Nb5 {[%clk 0:00:49.3]} 16... Rc8
{[%clk 0:02:08.7]} 17. Bg5 {[%clk 0:00:48.8]} 17... h6 {[%clk 0:01:50.4]} 18.
Nc7+ {[%clk 0:00:48.7]} 1

[Event "Open Nuevo Centro. Jornada 1"]
[Site "Chess.com"]
[Date "2020.06.19"]
[Round "2"]
[White "R�os Valle, Daniel "]
[Black "Torres Biosca, Roberto"]
[Result "1-0"]
[WhiteElo "1170"]
[BlackElo "740"]
[TimeControl "180+2"]
[EndTime "10:48:21 PDT"]
[Termination "Victoria de danielrios010309 por jaque mate"]

1. e4 {[%clk 0:02:46.8]} 1... e5 {[%clk 0:02:59.6]} 2. Nf3 {[%clk 0:02:47.4]}
2... Bc5 {[%clk 0:02:54.5]} 3. d4 {[%clk 0:02:26.6]} 3... Bb4+ {[%clk
0:02:54.1]} 4. c3 {[%clk 0:02:26.4]} 4... Ba5 {[%clk 0:02:54.1]} 5. Nxe5 {[%clk
0:02:25.3]} 5... d6 {[%clk 0:02:52.9]} 6. Nc4 {[%clk 0:02:24.8]} 6... b6 {[%clk
0:02:50.4]} 7. Nxa5 {[%clk 0:02:25.1]} 7... bxa5 {[%clk 0:02:48.6]} 8. Qf3
{[%clk 0:02:25.3]} 8... f6 {[%clk 0:02:42.8]} 9. Qh5+ {[%clk 0:02:16.2]} 9... g6
{[%clk 0:02:40.8]} 10. Qd5 {[%clk 0:02:09.9]} 10... c6 {[%clk 0:02:34.7]} 11.
Qc4 {[%clk 0:01:59]} 11... Ba6 {[%clk 0:02:29.4]} 12. Qb3 {[%clk 0:01:56.9]}
12... Qe7 {[%clk 0:02:21.8]} 13. Bxa6 {[%clk 0:01:51.2]} 13... Nxa6 {[%clk
0:02:22]} 14. O-O {[%clk 0:01:47.8]} 14... h5 {[%clk 0:02:16.9]} 15. Re1 {[%clk
0:01:43.7]} 15... Rb8 {[%clk 0:02:16.4]} 16. Qc2 {[%clk 0:01:40.7]} 16... h4
{[%clk 0:02:11.9]} 17. e5 {[%clk 0:01:40.6]} 17... fxe5 {[%clk 0:02:11.7]} 18.
Qxg6+ {[%clk 0:01:36.8]} 18... Kd8 {[%clk 0:02:05.8]} 19. Bg5 {[%clk 0:01:36.6]}
19... Nf6 {[%clk 0:02:01.2]} 20. Bxf6 {[%clk 0:01:34.7]} 20... Rg8 {[%clk
0:01:58.8]} 21. Bxe7+ {[%clk 0:01:35]} 21... Kxe7 {[%clk 0:01:57.6]} 22. Qe4
{[%clk 0:01:27.1]} 22... d5 {[%clk 0:01:56.9]} 23. Qxe5+ {[%clk 0:01:25.6]}
23... Kd8 {[%clk 0:01:54.8]} 24. Qe7+ {[%clk 0:01:25.8]} 24... Kc8 {[%clk
0:01:53.9]} 25. Re6 {[%clk 0:01:21.3]} 25... Nc7 {[%clk 0:01:52.6]} 26. Rxc6
{[%clk 0:01:18.7]} 26... Rb7 {[%clk 0:01:52]} 27. Na3 {[%clk 0:01:14.5]} 27...
Re8 {[%clk 0:01:49.6]} 28. Qxe8# {[%clk 0:01:13]} 1

[Event "Open Nuevo Centro. Jornada 1"]
[Site "Chess.com"]
[Date "2020.06.19"]
[Round "2"]
[White "Cebolla Ruiz, David"]
[Black "Clement G�mez, Jos� Antonio"]
[Result "0-1"]
[WhiteElo "1726"]
[BlackElo "2489"]
[TimeControl "180+2"]
[EndTime "10:48:25 PDT"]
[Termination "Victoria de P4AD por tiempo"]

1. e4 {[%clk 0:03:01.9]} 1... c5 {[%clk 0:03:00.5]} 2. Nf3 {[%clk 0:03:01.4]}
2... e6 {[%clk 0:03:01.8]} 3. d4 {[%clk 0:03:01.4]} 3... cxd4 {[%clk 0:03:03.7]}
4. Nxd4 {[%clk 0:03:02]} 4... Nc6 {[%clk 0:03:05.2]} 5. Be3 {[%clk 0:02:49.4]}
5... Nf6 {[%clk 0:03:02.7]} 6. f3 {[%clk 0:02:47.9]} 6... d5 {[%clk 0:02:57.7]}
7. Bd3 {[%clk 0:01:29.3]} 7... e5 {[%clk 0:02:51.3]} 8. Nxc6 {[%clk 0:01:00.2]}
8... bxc6 {[%clk 0:02:53.2]} 9. O-O {[%clk 0:00:44.9]} 9... Be7 {[%clk
0:02:52.5]} 10. Bg5 {[%clk 0:00:19.7]} 10... O-O {[%clk 0:02:50.9]} 11. Bxf6
{[%clk 0:00:18.8]} 11... Bxf6 {[%clk 0:02:50.4]} 12. c3 {[%clk 0:00:19.6]} 12...
Qb6+ {[%clk 0:02:46.9]} 13. Kh1 {[%clk 0:00:17.6]} 13... Qxb2 {[%clk 0:02:46.9]}
14. Nd2 {[%clk 0:00:13.7]} 14... Qxc3 {[%clk 0:02:46.6]} 15. Qc2 {[%clk
0:00:14.3]} 15... Qxc2 {[%clk 0:02:46.1]} 16. Bxc2 {[%clk 0:00:15.5]} 16... Ba6
{[%clk 0:02:47.2]} 17. Rfe1 {[%clk 0:00:15.4]} 17... Rab8 {[%clk 0:02:46.1]} 18.
exd5 {[%clk 0:00:15]} 18... cxd5 {[%clk 0:02:48]} 19. Nb3 {[%clk 0:00:15.5]}
19... Rfc8 {[%clk 0:02:45.9]} 20. Bf5 {[%clk 0:00:14.6]} 20... Rc3 {[%clk
0:02:42.4]} 21. Rac1 {[%clk 0:00:13.5]} 21... Rxc1 {[%clk 0:02:32.4]} 22. Rxc1
{[%clk 0:00:14.2]} 22... g6 {[%clk 0:02:34.3]} 0

[Event "Open Nuevo Centro. Jornada 1"]
[Site "Chess.com"]
[Date "2020.06.19"]
[Round "2"]
[White "Fern�ndez Mart�n, Berta"]
[Black "Selva Viu, Antonio"]
[Result "1-0"]
[WhiteElo "1029"]
[BlackElo "362"]
[TimeControl "180+2"]
[EndTime "10:48:43 PDT"]
[Termination "Victoria de MikayoMata97 por tiempo"]

1. e4 {[%clk 0:03:01.5]} 1... e5 {[%clk 0:00:14.5]} 2. Nf3 {[%clk 0:02:59.1]}
2... f5 {[%clk 0:00:15.9]} 3. exf5 {[%clk 0:02:58.2]} 3... Nf6 {[%clk
0:00:17.3]} 4. Nxe5 {[%clk 0:02:42.2]} 4... d6 {[%clk 0:00:14.1]} 5. Nf3 {[%clk
0:02:38.7]} 5... Bxf5 {[%clk 0:00:14]} 6. Nc3 {[%clk 0:02:25.4]} 6... d5 {[%clk
0:00:10.1]} 7. d4 {[%clk 0:02:16.9]} 7... Bb4 {[%clk 0:00:05.4]} 8. Bd2 {[%clk
0:02:08.9]} 8... O-O {[%clk 0:00:05.4]} 9. Be2 {[%clk 0:02:01.5]} 9... Qe8
{[%clk 0:00:07.3]} 10. O-O {[%clk 0:01:57.6]} 10... Bxc3 {[%clk 0:00:09.2]} 11.
Bxc3 {[%clk 0:01:53.4]} 11... Nc6 {[%clk 0:00:06.2]} 12. Re1 {[%clk 0:01:38.7]}
12... Ne4 {[%clk 0:00:08.1]} 13. Bd3 {[%clk 0:01:28.4]} 1

[Event "Open Nuevo Centro. Jornada 1"]
[Site "Chess.com"]
[Date "2020.06.19"]
[Round "2"]
[White "Movsisyan, Tigran"]
[Black "Ferrero Sanchis, Enrique"]
[Result "1-0"]
[WhiteElo "1889"]
[BlackElo "1516"]
[TimeControl "180+2"]
[EndTime "10:48:49 PDT"]
[Termination "Victoria de USHADIRvzgo por jaque mate"]

1. d4 {[%clk 0:03:01.9]} 1... d6 {[%clk 0:03:00.4]} 2. c4 {[%clk 0:02:59.5]}
2... g6 {[%clk 0:03:00.7]} 3. Nf3 {[%clk 0:02:58.3]} 3... Bg4 {[%clk 0:03:00.2]}
4. Nc3 {[%clk 0:02:58.1]} 4... Bg7 {[%clk 0:03:00.6]} 5. Bf4 {[%clk 0:02:57.8]}
5... c6 {[%clk 0:03:00.7]} 6. e3 {[%clk 0:02:58]} 6... Nd7 {[%clk 0:02:59.2]} 7.
Be2 {[%clk 0:02:58.1]} 7... Nb6 {[%clk 0:02:56.1]} 8. O-O {[%clk 0:02:56.2]}
8... Bxf3 {[%clk 0:02:53.9]} 9. Bxf3 {[%clk 0:02:50.8]} 9... Nxc4 {[%clk
0:02:53.8]} 10. a4 {[%clk 0:02:49.2]} 10... e6 {[%clk 0:02:52.5]} 11. b3 {[%clk
0:02:33.5]} 11... Nb6 {[%clk 0:02:51]} 12. a5 {[%clk 0:02:33.6]} 12... Nd5
{[%clk 0:02:50.5]} 13. Bxd5 {[%clk 0:02:26.6]} 13... exd5 {[%clk 0:02:46.2]} 14.
e4 {[%clk 0:02:24.5]} 14... dxe4 {[%clk 0:02:42.7]} 15. Nxe4 {[%clk 0:02:23.2]}
15... Bf8 {[%clk 0:02:37]} 16. Re1 {[%clk 0:02:21.1]} 16... Kd7 {[%clk
0:02:32.1]} 17. Qf3 {[%clk 0:01:47.5]} 17... Nf6 {[%clk 0:02:25.1]} 18. Bg5
{[%clk 0:01:44.4]} 18... Be7 {[%clk 0:02:16.7]} 19. Nxf6+ {[%clk 0:01:38.7]}
19... Bxf6 {[%clk 0:02:13]} 20. Bxf6 {[%clk 0:01:40.6]} 20... Qc7 {[%clk
0:02:12.6]} 21. Bxh8 {[%clk 0:01:39.8]} 21... Rxh8 {[%clk 0:02:12.9]} 22. Qxf7+
{[%clk 0:01:41]} 22... Kc8 {[%clk 0:02:12.2]} 23. Re8+ {[%clk 0:01:38.5]} 23...
Rxe8 {[%clk 0:02:12]} 24. Qxe8+ {[%clk 0:01:40.4]} 24... Qd8 {[%clk 0:02:13]}
25. Qxd8+ {[%clk 0:01:41.9]} 25... Kxd8 {[%clk 0:02:13.8]} 26. Re1 {[%clk
0:01:43.2]} 26... b6 {[%clk 0:02:13.8]} 27. axb6 {[%clk 0:01:42.8]} 27... axb6
{[%clk 0:02:14.5]} 28. f4 {[%clk 0:01:44.7]} 28... Kd7 {[%clk 0:02:14.7]} 29.
Kf2 {[%clk 0:01:45.9]} 29... c5 {[%clk 0:02:15.9]} 30. dxc5 {[%clk 0:01:45.5]}
30... bxc5 {[%clk 0:02:15.2]} 31. Ke3 {[%clk 0:01:46.7]} 31... Kc6 {[%clk
0:02:16.3]} 32. Kd3 {[%clk 0:01:44.5]} 32... Kb5 {[%clk 0:02:15.8]} 33. Re6
{[%clk 0:01:43.1]} 33... d5 {[%clk 0:02:16.1]} 34. Re7 {[%clk 0:01:43.6]} 34...
Kb4 {[%clk 0:02:16.5]} 35. Rd7 {[%clk 0:01:41.2]} 35... d4 {[%clk 0:02:13.9]}
36. Rxh7 {[%clk 0:01:37.5]} 36... Kxb3 {[%clk 0:02:14.3]} 37. g4 {[%clk
0:01:37.6]} 37... c4+ {[%clk 0:02:13.9]} 38. Kxd4 {[%clk 0:01:38.9]} 38... c3
{[%clk 0:02:14.8]} 39. Rc7 {[%clk 0:01:40]} 39... Kb2 {[%clk 0:02:15]} 40. Rxc3
{[%clk 0:01:39.4]} 40... g5 {[%clk 0:02:16.2]} 41. fxg5 {[%clk 0:01:36.8]} 41...
Ka2 {[%clk 0:02:16.4]} 42. g6 {[%clk 0:01:38]} 42... Kb2 {[%clk 0:02:16.7]} 43.
g7 {[%clk 0:01:39.3]} 43... Ka2 {[%clk 0:02:17.2]} 44. g8=Q+ {[%clk 0:01:40.2]}
44... Kb2 {[%clk 0:02:17.9]} 45. Qb8+ {[%clk 0:01:41.6]} 45... Ka2 {[%clk
0:02:18.3]} 46. Qb4 {[%clk 0:01:35.8]} 46... Ka1 {[%clk 0:02:17.4]} 47. Ra3#
{[%clk 0:01:37.7]} 1

[Event "Open Nuevo Centro. Jornada 1"]
[Site "Chess.com"]
[Date "2020.06.19"]
[Round "2"]
[White "Elenkov Olmo, Ivan"]
[Black "Aguado, Pablo Luis"]
[Result "0-1"]
[WhiteElo "795"]
[BlackElo "1242"]
[TimeControl "180+2"]
[EndTime "10:49:02 PDT"]
[Termination "Victoria de PLAD_2006 por tiempo"]

1. e4 {[%clk 0:03:00.2]} 1... c5 {[%clk 0:02:59.6]} 2. Nf3 {[%clk 0:02:58.7]}
2... d6 {[%clk 0:02:59.7]} 3. Bc4 {[%clk 0:02:58.4]} 3... e6 {[%clk 0:02:59]} 4.
d3 {[%clk 0:02:50.5]} 4... g6 {[%clk 0:02:59.7]} 5. O-O {[%clk 0:02:46.4]} 5...
Bg7 {[%clk 0:02:58.9]} 6. Nc3 {[%clk 0:02:42]} 6... Nc6 {[%clk 0:02:58.5]} 7.
Be3 {[%clk 0:02:30.3]} 7... Nge7 {[%clk 0:02:57.1]} 8. a3 {[%clk 0:02:28.8]}
8... O-O {[%clk 0:02:56.8]} 9. Qd2 {[%clk 0:02:24.2]} 9... d5 {[%clk 0:02:56.3]}
10. exd5 {[%clk 0:02:23.8]} 10... exd5 {[%clk 0:02:58.2]} 11. Ba2 {[%clk
0:02:15.2]} 11... d4 {[%clk 0:02:58.3]} 12. Bxd4 {[%clk 0:01:59.7]} 12... cxd4
{[%clk 0:02:58.1]} 13. Ne2 {[%clk 0:01:56.6]} 13... Bg4 {[%clk 0:02:56.7]} 14.
c3 {[%clk 0:01:43.6]} 14... Bxf3 {[%clk 0:02:56.3]} 15. gxf3 {[%clk 0:01:42.1]}
15... Ne5 {[%clk 0:02:47.9]} 16. Nxd4 {[%clk 0:01:31.1]} 16... Qxd4 {[%clk
0:02:45.3]} 17. cxd4 {[%clk 0:01:28.8]} 17... Nxf3+ {[%clk 0:02:46.2]} 18. Kg2
{[%clk 0:01:23.3]} 18... Nxd2 {[%clk 0:02:48.1]} 19. Rfe1 {[%clk 0:01:19.9]}
19... Nf5 {[%clk 0:02:39.8]} 20. Rad1 {[%clk 0:00:49.2]} 20... Bh6 {[%clk
0:02:38.7]} 21. Bd5 {[%clk 0:00:41.6]} 21... Nxd4 {[%clk 0:02:26.2]} 22. Bxb7
{[%clk 0:00:24.1]} 22... Rab8 {[%clk 0:02:03.7]} 23. Be4 {[%clk 0:00:11.5]}
23... Rxb2 {[%clk 0:02:02.4]} 24. f3 {[%clk 0:00:05.6]} 24... Nxe4+ {[%clk
0:02:00.9]} 0